{"text_format":"3","workbook":"xlsx","n_sheets":2,"sheets":["CronogramaDeProjeto","Sobre"],"not_rendered":{"images":1,"defined_names":7},"read":"whole","date_system":"1900"}

{"sheet":"CronogramaDeProjeto","index":0,"n_rows":33,"n_cols":64,"rows_kept":33,"merged":[[2,2,2,3],[2,4,2,5],[3,2,3,3],[3,8,3,14],[3,15,3,21],[3,22,3,28],[3,29,3,35],[3,36,3,42],[3,43,3,49],[3,50,3,56],[3,57,3,63],[4,1,4,6]]}
["Crie um cronograma de projeto nesta planilha.\nDigite o título desse projeto na célula B1. \nAs informações sobre como usar esta planilha, incluindo instruções para leitores de tela e o autor desta pasta de trabalho, estão na planilha Sobre.\nContinue navegando pela coluna A para saber mais.","TÍTULO DO PROJETO",{"$nulls":6},"GRÁFICO DE GANTT SIMPLES por Vertex42.com"]
["Insira o Nome da empresa na célula B2.","Nome da empresa",{"$nulls":6},"https://www.vertex42.com/ExcelTemplates/simple-gantt-chart.html"]
["Insira o nome do Líder do projeto na célula B3. Insira a data de Início do projeto na célula E3. Início do projeto: o rótulo está na célula C3.","Líder do projeto","Início do projeto:",null,{"$f":"TODAY()","v":"2019-03-28"}]
["A Semana de exibição na célula E4 representa a semana inicial a ser exibida no cronograma do projeto na célula I4. A data de início do projeto é considerada Semana 1. Para alterar a semana de exibição, basta inserir um novo número da semana na célula E4.\nA data inicial para cada semana, começando com a semana de exibição na célula E4, começa na célula I4 e é calculada automaticamente. Há 8 semanas representadas nesse modo de exibição que vão da célula I4 a célula BF4.\nVocê não deve modificar essas células.\nSemana de exibição: o rótulo está na célula C4.",null,"Semana de exibição:",null,1,{"$nulls":3},{"$f":"I5","v":"2019-03-25"},{"$nulls":6},{"$f":"P5","v":"2019-04-01"},{"$nulls":6},{"$f":"W5","v":"2019-04-08"},{"$nulls":6},{"$f":"AD5","v":"2019-04-15"},{"$nulls":6},{"$f":"AK5","v":"2019-04-22"},{"$nulls":6},{"$f":"AR5","v":"2019-04-29"},{"$nulls":6},{"$f":"AY5","v":"2019-05-06"},{"$nulls":6},{"$f":"BF5","v":"2019-05-13"}]
["As células I5 a BL5 contêm o número de dias da semana representado no bloco de células acima de cada célula de data e são calculadas automaticamente.\nVocê não deve modificar essas células.\nA data de hoje é contornada em vermelho (hex #AD3815) a partir da data de hoje na linha 5, passando pela coluna de data inteira até o final do cronograma do projeto.",{"$nulls":7},{"$f":"Início_do_projeto-WEEKDAY(Início_do_projeto,1)+2+7*(Semana_de_exibição-1)","v":"2019-03-25"},{"$f":"I5+1","v":"2019-03-26"},{"$f":"J5+1","v":"2019-03-27"},"2019-03-28","2019-03-29","2019-03-30","2019-03-31",{"$f":"O5+1","v":"2019-04-01"},{"$f":"P5+1","v":"2019-04-02"},"2019-04-03","2019-04-04","2019-04-05","2019-04-06","2019-04-07",{"$f":"V5+1","v":"2019-04-08"},{"$f":"W5+1","v":"2019-04-09"},"2019-04-10","2019-04-11","2019-04-12","2019-04-13","2019-04-14",{"$f":"AC5+1","v":"2019-04-15"},{"$f":"AD5+1","v":"2019-04-16"},"2019-04-17","2019-04-18","2019-04-19","2019-04-20","2019-04-21",{"$f":"AJ5+1","v":"2019-04-22"},{"$f":"AK5+1","v":"2019-04-23"},"2019-04-24","2019-04-25","2019-04-26","2019-04-27","2019-04-28",{"$f":"AQ5+1","v":"2019-04-29"},{"$f":"AR5+1","v":"2019-04-30"},"2019-05-01","2019-05-02","2019-05-03","2019-05-04","2019-05-05",{"$f":"AX5+1","v":"2019-05-06"},{"$f":"AY5+1","v":"2019-05-07"},{"$f":"AZ5+1","v":"2019-05-08"},"2019-05-09","2019-05-10","2019-05-11","2019-05-12",{"$f":"BE5+1","v":"2019-05-13"},{"$f":"BF5+1","v":"2019-05-14"},{"$f":"BG5+1","v":"2019-05-15"},"2019-05-16","2019-05-17","2019-05-18","2019-05-19"]
["Esta linha inclui cabeçalhos do cronograma do projeto que estão abaixo deles. \nNavegue de B6 a BL6 para ouvir o conteúdo. A primeira letra de cada dia da semana da data acima daquele cabeçalho começa na célula I6 e continua até a célula BL6.\nTodo o gráfico de linha do tempo de projeto é gerado automaticamente com base nas datas de início e término inseridas, usando os formatos condicionais.\nNão modifique o conteúdo nas células dentro das colunas após a coluna I, começando na célula I7.","TAREFA","ATRIBUÍDO\nPARA","PROGRESSO","INÍCIO","TÉRMINO",null,"DIAS",{"$f":"LEFT(TEXT(I5,\"ddd\"),1)","v":"s"},{"$f":"LEFT(TEXT(J5,\"ddd\"),1)","v":"t"},"q","q","s","s","d","s","t","q","q","s","s","d","s","t","q","q","s","s","d","s","t","q","q","s","s","d","s","t","q","q","s","s","d","s",{"$f":"LEFT(TEXT(AS5,\"ddd\"),1)","v":"t"},"q","q","s","s","d","s","t","q","q","s","s","d","s","t","q","q","s","s","d"]
["Não exclua esta linha. Esta linha ficará oculta para preservar uma fórmula usada para realçar o dia atual no cronograma do projeto. ",{"$nulls":6},{"$f":"IF(OR(ISBLANK(Início_do_projeto),ISBLANK(término_da_tarefa)),\"\",término_da_tarefa-Início_do_projeto+1)","v":""}]
["A célula B8 contém o título do exemplo da Fase 1. \nInsira um novo Título na célula B8.\nNa célula C8, insira o nome a atribuir à fase, caso ela se aplique ao seu projeto.\nNa célula D8, insira o Progresso para a fase inteira, caso ela se aplique ao seu projeto.\nNas células E8 e F8, insira as datas de início e término para a fase inteira, caso ela se aplique ao seu projeto. \nO gráfico de Gantt preenche automaticamente as datas apropriadas e sombreia de acordo com o andamento inserido.\nPara excluir a fase e trabalhar apenas nas tarefas, basta excluir essa linha.","Título Fase 1",{"$nulls":5},""]
["A célula B9 contém a tarefa de exemplo \"Tarefa 1\". \nInsira um novo nome da tarefa na célula B9.\nInsira uma pessoa para atribuir a tarefa na célula C9.\nInsira o andamento da tarefa na célula D9. Uma barra de progresso é exibida na célula e fica sombreada de acordo com o número na célula. Por exemplo, 50% de progresso sombreia metade da célula.\nInsira a data de início da tarefa na célula E9.\nInsira a data de término da tarefa na célula F9.\nUma barra de status sombreada das datas inseridas aparece em blocos começando na célula I9 até BL9. ","Tarefa 1","Nome",{"v":0.5,"d":"50%"},{"$f":"Início_do_projeto","v":"2019-03-28"},{"$f":"E9+3","v":"2019-03-31"},null,4]
["As linhas 10 a 13 repetem o padrão da linha 9. \nRepita as instruções da célula A9 para todas as linhas de tarefas nesta planilha. Substitua os dados de exemplo.\nUm exemplo de outra fase começa na célula A14. \nContinue inserindo tarefas nas células A10 a A13 ou vá para a célula A14 para saber mais.","Tarefa 2",null,{"v":0.6,"d":"60%"},{"$f":"F9","v":"2019-03-31"},{"$f":"E10+2","v":"2019-04-02"},null,6]
[null,"Tarefa 3",null,{"v":0.5,"d":"50%"},{"$f":"F10","v":"2019-04-02"},{"$f":"E11+4","v":"2019-04-06"},null,10]
[null,"Tarefa 4",null,{"v":0.25,"d":"25%"},{"$f":"F11","v":"2019-04-06"},{"$f":"E12+5","v":"2019-04-11"},null,15]
[null,"Tarefa 5",null,null,{"$f":"E10+1","v":"2019-04-01"},{"$f":"E13+2","v":"2019-04-03"},null,7]
["A célula à direita contém o título do exemplo da Fase 2. \nVocê pode criar uma nova fase a qualquer momento na coluna B. Este cronograma de projeto não exige fases. Para remover a fase, basta excluir a linha.\nPara criar um novo bloco de fases nesta linha, digite um novo Título na célula à direita.\nPara continuar a adicionar tarefas à fase acima, insira uma nova linha acima desta e preencha os dados da tarefa como na instrução da célula A9.\nAtualize os detalhes da Fase na célula à direita, com base nas instruções da célula A8.\nContinue navegando para baixo nas células da coluna A para saber mais.\nSe você ainda não adicionou as novas linhas nesta planilha, encontrará 2 exemplos adicionais de blocos de fase que foram criados nas células B20 e B26. Caso contrário, navegue pelas células da coluna A para localizar os blocos adicionais. \nRepita as instruções das células A8 e A9 sempre que precisar.","Título Fase 2",{"$nulls":5},""]
[null,"Tarefa 1",null,{"v":0.5,"d":"50%"},{"$f":"E13+1","v":"2019-04-02"},{"$f":"E15+4","v":"2019-04-06"},null,10]
[null,"Tarefa 2",null,{"v":0.5,"d":"50%"},{"$f":"E15+2","v":"2019-04-04"},{"$f":"E16+5","v":"2019-04-09"},null,13]
[null,"Tarefa 3",null,null,{"$f":"F16","v":"2019-04-09"},{"$f":"E17+3","v":"2019-04-12"},null,16]
[null,"Tarefa 4",null,null,{"$f":"E17","v":"2019-04-09"},{"$f":"E18+2","v":"2019-04-11"},null,15]
[null,"Tarefa 5",null,null,{"$f":"E18","v":"2019-04-09"},{"$f":"E19+3","v":"2019-04-12"},null,16]
["Bloco de título de fase de exemplo","Título Fase 3",{"$nulls":5},""]
[null,"Tarefa 1",null,null,{"$f":"E9+15","v":"2019-04-12"},{"$f":"E21+5","v":"2019-04-17"},null,21]
[null,"Tarefa 2",null,null,{"$f":"F21+1","v":"2019-04-18"},{"$f":"E22+4","v":"2019-04-22"},null,26]
[null,"Tarefa 3",null,null,{"$f":"E22+5","v":"2019-04-23"},{"$f":"E23+5","v":"2019-04-28"},null,32]
[null,"Tarefa 4",null,null,{"$f":"F23+1","v":"2019-04-29"},{"$f":"E24+4","v":"2019-05-03"},null,37]
[null,"Tarefa 5",null,null,{"$f":"E23","v":"2019-04-23"},{"$f":"E25+4","v":"2019-04-27"},null,31]
["Bloco de título de fase de exemplo","Título Fase 4",{"$nulls":5},""]
[null,"Tarefa 1",null,null,"data","data",null,{"$error":"#VALUE!"}]
[null,"Tarefa 2",null,null,"data","data",null,{"$error":"#VALUE!"}]
[null,"Tarefa 3",null,null,"data","data",null,{"$error":"#VALUE!"}]
[null,"Tarefa 4",null,null,"data","data",null,{"$error":"#VALUE!"}]
[null,"Tarefa 5",null,null,"data","data",null,{"$error":"#VALUE!"}]
["Esta é uma linha vazia",{"$nulls":6},""]
["Esta linha marca o final do Cronograma de projeto. NÃO insira nada nessa linha. \nInsira novas linhas ACIMA desta linha para continuar a construção do cronograma de projeto.","Insira novas linhas ACIMA desta",{"$nulls":5},""]

{"sheet":"Sobre","index":1,"n_rows":16,"n_cols":1,"rows_kept":16}
[]
["GRÁFICO DE GANTT SIMPLES por Vertex42.com"]
["https://www.vertex42.com/ExcelTemplates/simple-gantt-chart.html"]
["Sobre este modelo"]
["Este modelo proporciona uma maneira simples de criar um gráfico de Gantt para ajudar a visualizar e controlar seu projeto. Basta inserir suas tarefas e as datas de início e término, as fórmulas não são necessárias. As barras no gráfico de Gantt representam a duração da tarefa e são exibidas usando a formatação condicional. Para adicionar novas tarefas, insira novas linhas."]
["Guia para leitores de tela"]
["Há 2 planilhas nesta pasta de trabalho. \n\nCronogramaDeProjeto\nSobre\n\nAs instruções para cada planilha estão na coluna A, começando na célula A1 de cada planilha. Elas foram escritas com texto oculto. Cada etapa orienta você pelas informações nessa linha. Cada etapa subsequente continua na célula A2, A3 e assim por diante, caso isso não seja orientado explicitamente. Por exemplo, o texto da instrução pode mostrar \"continua na célula A6\" para a próxima etapa. \n\nEsse texto oculto não será impresso.\n\nPara remover essas instruções da planilha, basta excluir a coluna A."]
["Ajuda adicional"]
["Clique no link abaixo para acessar o site vertex42.com e saiba mais sobre como usar esse modelo, como calcular os dias normais e dias úteis, criar as dependências entre tarefas, alterar as cores das barras, adicionar uma barra de rolagem para facilitar a alteração da semana de exibição, ampliar o intervalo de data exibido no gráfico, etc."]
["Como usar um gráfico de Gantt simples"]
["Mais modelos de gerenciamento de projetos"]
["Acesse Vertex42.com para baixar outros modelos de gerenciamento de projetos, incluindo os diferentes tipos de cronogramas de projetos, gráficos de Gantt, listas de tarefas, etc."]
["Modelos de gerenciamento de projetos"]
["Sobre o Vertex42"]
["O Vertex42.com oferece mais de 300 modelos profissionais de planilha para uso corporativo, doméstico e educacional, a maioria deles com download gratuito. O conjunto de modelos inclui vários calendários, planejadores e agendas, bem como planilhas de finanças pessoais para orçamento, redução de débito e amortização de empréstimo."]
["As empresas encontrarão faturas, folhas de ponto, controladores de estoque, demonstrativos financeiros e modelos de planejamento de projetos. Professores e alunos encontrarão recursos como cronogramas de aula, planilhas de notas e planilhas de participação. Organize sua vida familiar com planejadores de refeições, listas de verificação e registros de exercícios. Cada modelo é completamente pesquisado, refinado e aprimorado ao longo do tempo com o feedback de milhares de usuários."]